fUSD/lending_fUSD_20240708
["ID","MTS","AMOUNT","RATE_DAILY","PERIOD"]
[331476548,1720437613514,-2911.08562636,0.00041909,30]
[331476549,1720437613593,-772.69006623,0.00041911,30]
[331476550,1720437613673,-221.81039859,0.00041933,30]
[331476551,1720437613762,-270.01780749,0.00041969,30]
[331476552,1720437613857,-50000.0,0.00042,32]
[331476553,1720437613952,-50000.0,0.00042,42]
[331476554,1720437614044,-1238.20288932,0.00042053,30]
[331476555,1720437614130,-467.81349837,0.00042181,30]
[331476556,1720437614217,-221.81039859,0.0004221,30]
[331476557,1720437614302,-467.81349837,0.00042308,30]
[331476558,1720437614385,-1538.02809587,0.00042312,30]
[331476559,1720437614473,-221.81039859,0.00042355,30]
[331476560,1720437614558,-221.81039859,0.0004236,30]
[331476561,1720437614642,-1538.02809587,0.00042374,30]
[331476562,1720437614726,-166.66666666,0.00042496,30]
[331476563,1720437614809,-600.0,0.00042501,120]
[331476564,1720437614890,-2911.08562636,0.00042506,30]
[331476565,1720437614970,-1812.59664946,0.00042553,30]
[331476566,1720437615050,-467.81349837,0.00042566,30]
[331476567,1720437615129,-1538.02809587,0.00042569,30]
[331476568,1720437615214,-3065.07536765,0.000426,30]
[331476569,1720437615291,-161.26799713,0.00042665,30]
[331476570,1720437615372,-772.69006623,0.00042697,30]
[331476571,1720437615454,-772.69006623,0.00042709,30]
[331476572,1720437615533,-467.81349837,0.00042721,30]
[331476573,1720437615612,-2911.08562636,0.00042778,30]
[331476574,1720437615689,-254.75139199,0.00042868,30]
[331476575,1720437615769,-379.33188592,0.00042955,30]
[331476576,1720437615846,-151.14628752,0.0004296,30]
[331476577,1720437615922,-270.01780749,0.00042982,30]
[331476578,1720437616010,-50000.0,0.00043,33]
[331476579,1720437616092,-50000.0,0.00043,43]
[331476580,1720437616402,-150.15697117,0.00043007,30]
[331476581,1720437616480,-254.75139199,0.00043008,30]
[331476582,1720437616559,-166.66666666,0.00043066,30]
[331476583,1720437616635,-1238.20288932,0.00043067,30]
[331476584,1720437616710,-772.69006623,0.00043117,30]
[331476585,1720437616790,-687.07832916,0.00043134,30]
[331476586,1720437616868,-166.66666666,0.00043243,30]
[331476587,1720437616948,-923.47391921,0.00043265,30]
[331476588,1720437617023,-1538.02809587,0.00043276,30]
[331476589,1720437617100,-569.53970398,0.0004332,30]
[331476590,1720437617178,-772.69006623,0.0004334,30]
[331476591,1720437617254,-923.47391921,0.00043497,30]
[331476592,1720437617333,-174.80956135,0.00043508,30]
[331476593,1720437617409,-238.14786493,0.00043518,30]
[331476594,1720437617488,-467.81349837,0.00043557,30]
[331476595,1720437617568,-166.66666666,0.0004359,30]
[331476596,1720437617644,-166.66666666,0.00043605,30]
[331476597,1720437617722,-772.69006623,0.00043611,30]
[331476598,1720437617799,-1538.02809587,0.00043677,30]
[331476599,1720437617873,-166.66666666,0.00043698,30]
[331476600,1720437617952,-238.14786493,0.00043715,30]
[331476601,1720437618035,-1238.20288932,0.00043716,30]
[331476602,1720437618113,-151.14628752,0.00043718,30]
[331476603,1720437618190,-1691.69,0.00043835,120]
[331476604,1720437618274,-161.77787719,0.00043842,30]
[331476605,1720437618358,-2911.08562636,0.00043845,30]
[331476606,1720437618446,-600.0,0.00043906,120]
[331476607,1720437618530,-1538.02809587,0.00043937,30]
[331476608,1720437618611,-2911.08562636,0.00043961,30]
[331476609,1720437618693,-166.66666666,0.00043986,30]
[331476610,1720437618778,-50000.0,0.00044,34]
[331476611,1720437618863,-50000.0,0.00044,44]
[331476612,1720437618952,-655.256263,0.00044,57]
[331476613,1720437619038,-687.07832916,0.00044037,30]
[331476614,1720437619122,-2911.08562636,0.00044053,30]
[331476615,1720437619208,-2911.08562636,0.00044058,30]
[331476616,1720437619291,-772.69006623,0.00044067,30]
[331476617,1720437619379,-166.66666666,0.00044072,30]
[331476618,1720437619463,-166.66666666,0.00044074,30]
[331476619,1720437619548,-569.53970398,0.00044108,30]
[331476620,1720437619628,-166.66666666,0.00044183,30]
[331476621,1720437619708,-467.81349837,0.00044269,30]
[331476622,1720437619788,-569.53970398,0.00044309,30]
[331476623,1720437619869,-467.81349837,0.00044362,30]
[331476624,1720437619952,-569.53970398,0.00044382,30]
[331476625,1720437620032,-959.06,0.00044384,120]
[331476626,1720437620113,-2911.08562636,0.00044387,30]
[331476627,1720437620195,-3065.07536765,0.00044406,30]
[331476628,1720437620278,-569.53970398,0.00044423,30]
[331476629,1720437620361,-2911.08562636,0.00044498,30]
[331476630,1720437620445,-2911.08562636,0.00044502,30]
[331476631,1720437620528,-1691.69,0.0004452,120]
[331476632,1720437620608,-254.75139199,0.00044545,30]
[331476633,1720437620692,-166.66666666,0.00044619,30]
[331476634,1720437620773,-379.33188592,0.00044626,30]
[331476635,1720437620856,-166.66666666,0.00044654,30]
[331476636,1720437620938,-270.01780749,0.00044703,30]
[331476637,1720437621018,-467.81349837,0.0004471,30]
[331476638,1720437621099,-169.44681685,0.00044713,30]
[331476639,1720437621178,-166.6666667,0.00044784,30]
[331476640,1720437621261,-166.66666666,0.00044813,30]
[331476641,1720437621339,-155.51654115,0.00044831,30]
[331476642,1720437621418,-292.99817384,0.00044852,30]
[331476643,1720437621496,-687.07832916,0.00044894,30]
[331476644,1720437621576,-238.14786493,0.00044898,30]
[331476645,1720437621655,-254.75139199,0.00044914,30]
[331476646,1720437621728,-687.07832916,0.00044925,30]
[331476647,1720437621807,-221.81039859,0.00044955,30]
[331476648,1720437621882,-161.26799713,0.0004496,30]
[331476649,1720437621964,-569.53970398,0.00044986,30]
[331476650,1720437622042,-166.66666666,0.00044991,30]
[331476651,1720437622125,-50000.0,0.00045,35]
[331476652,1720437622204,-50000.0,0.00045,45]
[331476653,1720437622279,-150.0,0.00045,85]
[331476654,1720437622359,-169.44681686,0.00045001,30]
[331476655,1720437622436,-238.14786493,0.00045024,30]
[331476656,1720437622516,-161.26799713,0.00045136,30]
[331476657,1720437622593,-2911.08562636,0.00045141,30]
[331476658,1720437622666,-569.53970398,0.00045164,30]
[331476659,1720437622741,-923.47391921,0.00045184,30]
[331476660,1720437622819,-1691.69,0.00045205,120]
[331476661,1720437622894,-155.51654115,0.0004521,30]
[331476662,1720437622970,-923.47391921,0.00045227,30]
[331476663,1720437623044,-270.01780749,0.00045234,30]
[331476664,1720437623119,-221.81039859,0.00045234,30]
[331476665,1720437623206,-600.0,0.00045311,120]
[331476666,1720437623299,-772.69006623,0.00045336,30]
[331476667,1720437623392,-270.01780749,0.00045338,30]
[331476668,1720437623475,-150.15697117,0.00045362,30]
[331476669,1720437623551,-166.66666666,0.00045425,30]
[331476670,1720437623625,-772.69006623,0.00045435,30]
[331476671,1720437623702,-270.01780749,0.00045485,30]
[331476672,1720437623779,-1538.02809587,0.00045532,30]
[331476673,1720437623875,-270.01780749,0.00045544,30]
[331476674,1720437623963,-221.81039859,0.00045617,30]
[331476675,1720437624050,-151.14628752,0.00045621,30]
[331476676,1720437624134,-166.66666666,0.00045631,30]
[331476677,1720437624221,-772.69006623,0.00045671,30]
[331476678,1720437624307,-569.53970398,0.00045684,30]
[331476679,1720437624394,-772.69006623,0.00045714,30]
[331476680,1720437624479,-687.07832916,0.00045756,30]
[331476681,1720437624565,-1691.69,0.0004589,120]
[331476682,1720437624652,-238.14786493,0.00045955,30]
[331476683,1720437624746,-1538.02809587,0.00045967,30]
[331476684,1720437624836,-166.66666666,0.00045973,30]
[331476685,1720437625141,-1812.59664946,0.00045993,30]
[331476686,1720437625226,-50000.0,0.00046,36]
[331476687,1720437625316,-50000.0,0.00046,46]
[331476688,1720437625401,-168.6,0.00046,96]
[331476689,1720437625490,-166.66666666,0.00046014,30]
[331476690,1720437625574,-155.51654115,0.00046026,30]
[331476691,1720437625662,-687.07832916,0.0004604,30]
[331476692,1720437625747,-155.51654115,0.00046056,30]
[331476693,1720437625834,-254.75139199,0.00046075,30]
[331476694,1720437625920,-923.47391921,0.00046147,30]
[331476695,1720437626003,-772.69006623,0.00046347,30]
[331476696,1720437626087,-254.75139199,0.00046372,30]
[331476697,1720437626178,-772.69006623,0.00046375,30]
[331476698,1720437626267,-923.47391921,0.00046459,30]
[331476699,1720437626355,-1538.02809587,0.00046503,30]
[331476700,1720437626441,-379.33188592,0.00046526,30]
[331476701,1720437626526,-569.53970398,0.00046551,30]
[331476702,1720437626610,-150.0,0.00046563,30]
[331476703,1720437626694,-1691.69,0.00046575,120]
[331476704,1720437626779,-1238.20288932,0.0004661,30]
[331476705,1720437626860,-569.53970398,0.00046629,30]
[331476706,1720437626943,-467.81349837,0.00046688,30]
[331476707,1720437627029,-600.0,0.00046716,120]
[331476708,1720437627111,-687.07832916,0.0004672,30]
[331476709,1720437627190,-166.66666666,0.00046808,30]
[331476710,1720437627269,-150.0,0.0004681,30]
[331476711,1720437627352,-166.66666666,0.00046867,30]
[331476712,1720437627429,-151.14628752,0.00046883,30]
[331476713,1720437627508,-923.47391921,0.00046889,30]
[331476714,1720437627593,-254.75139199,0.00046892,30]
[331476715,1720437627673,-151.14628752,0.00046928,30]
[331476716,1720437627753,-379.33188592,0.00046941,30]
[331476717,1720437627833,-221.81039859,0.00046963,30]
[331476718,1720437627915,-569.53970398,0.00046998,30]
[331476719,1720437628000,-50000.0,0.00047,37]
[331476720,1720437628087,-50000.0,0.00047,47]
[331476721,1720437628173,-161.77787719,0.00047096,30]
[331476722,1720437628254,-467.81349837,0.00047139,30]
[331476723,1720437628338,-270.01780749,0.00047193,30]
[331476724,1720437628418,-152.27392528,0.00047195,30]
[331476725,1720437628503,-151.14628752,0.00047211,30]
[331476726,1720437628596,-1691.69,0.0004726,120]
[331476727,1720437628684,-221.81039859,0.00047301,30]
[331476728,1720437628774,-161.26799713,0.00047422,30]
[331476729,1720437628856,-150.15697117,0.00047456,30]
[331476730,1720437628942,-150.0,0.0004748,30]
[331476731,1720437629024,-1812.59664946,0.00047518,30]
[331476732,1720437629108,-1238.20288932,0.00047519,30]
[331476733,1720437629192,-155.51654115,0.00047583,30]
[331476734,1720437629274,-238.14786493,0.00047669,30]
[331476735,1720437629359,-923.47391921,0.00047683,30]
[331476736,1720437629443,-772.69006623,0.00047716,30]
[331476737,1720437629528,-1812.59664946,0.00047719,30]
[331476738,1720437629607,-238.14786493,0.0004772,30]
[331476739,1720437629689,-3065.07536765,0.00047742,30]
[331476740,1720437629768,-238.14786493,0.00047786,30]
[331476741,1720437629850,-221.81039859,0.00047808,30]
[331476742,1720437629935,-166.66666666,0.00047896,30]
[331476743,1720437630020,-379.33188592,0.00047909,30]
[331476744,1720437630105,-2911.08562636,0.00047914,30]
[331476745,1720437630186,-687.07832916,0.00047924,30]
[331476746,1720437630272,-3065.07536765,0.0004794,30]
[331476747,1720437630353,-1691.69,0.00047945,120]
[331476748,1720437630433,-151.14628752,0.00047953,30]
[331476749,1720437630514,-161.26799718,0.00047958,30]
[331476750,1720437630598,-1812.59664946,0.00047971,30]
[331476751,1720437630683,-50000.0,0.00048,38]
[331476752,1720437630768,-50000.0,0.00048,48]
[331476753,1720437630850,-342.69395428,0.00048002,120]
[331476754,1720437630935,-467.81349837,0.00048097,30]
[331476755,1720437631019,-467.81349837,0.0004811,30]
[331476756,1720437631103,-270.01780749,0.00048118,30]
[331476757,1720437631187,-3065.07536765,0.00048134,30]
[331476758,1720437631270,-221.81039859,0.00048151,30]
[331476759,1720437632654,-379.33188592,0.00048167,30]
[331476760,1720437632750,-166.74908223,0.00048222,30]
[331476761,1720437632833,-772.69006623,0.00048252,30]
[331476762,1720437632915,-3065.07536765,0.00048257,30]
[331476763,1720437633014,-923.47391921,0.00048267,30]
[331476764,1720437633111,-569.53970398,0.0004834,30]
[331476765,1720437633209,-179.41419415,0.00048399,30]
[331476766,1720437633307,-467.81349837,0.00048464,30]
[331476767,1720437633403,-1812.59664946,0.00048482,30]
[331476768,1720437633510,-569.53970398,0.00048485,30]
[331476769,1720437633620,-254.75139199,0.00048511,30]
[331476770,1720437633724,-166.66666666,0.00048531,30]
[331476771,1720437633824,-772.69006623,0.00048545,30]
[331476772,1720437633926,-166.66666666,0.00048547,30]
[331476773,1720437634034,-1238.20288932,0.00048594,30]
[331476774,1720437634143,-1538.02809587,0.00048629,30]
[331476775,1720437634247,-1691.69,0.0004863,120]
[331476776,1720437634350,-270.01780749,0.0004864,30]
[331476777,1720437634454,-772.69006623,0.0004868,30]
[331476778,1720437634558,-772.69006623,0.00048718,30]
[331476779,1720437634657,-150.0,0.00048742,30]
[331476780,1720437634758,-221.81039859,0.00048763,30]
[331476781,1720437634856,-166.66666666,0.00048806,30]
[331476782,1720437634957,-923.47391921,0.0004881,30]
[331476783,1720437635056,-379.33188592,0.00048816,30]
[331476784,1720437635153,-238.14786493,0.00048843,30]
[331476785,1720437635251,-151.14628752,0.00048882,30]
[331476786,1720437635350,-687.07832916,0.00048909,30]
[331476787,1720437635449,-923.47391921,0.00048952,30]
[331476788,1720437635552,-50000.0,0.00049,39]
[331476789,1720437635650,-50000.0,0.00049,49]
[331476790,1720437635742,-166.66666666,0.00049018,30]
[331476791,1720437635840,-166.66666666,0.00049034,30]
[331476792,1720437635935,-1538.02809587,0.00049062,30]
[331476793,1720437636028,-166.66666666,0.00049074,30]
[331476794,1720437636121,-152.27392529,0.00049103,30]
[331476795,1720437636219,-155.51654115,0.00049106,30]
[331476796,1720437636312,-254.75139199,0.00049129,30]
[331476797,1720437636411,-166.66666666,0.0004916,30]
[331476798,1720437636513,-1812.59664946,0.0004919,30]
[331476799,1720437636612,-772.69006623,0.00049258,30]
[331476800,1720437636705,-151.14628752,0.00049295,30]
[331476801,1720437636801,-150.0,0.00049306,30]
[331476802,1720437636894,-502.75234208,0.00049315,120]
[331476803,1720437636984,-500.0,0.00049315,120]
[331476804,1720437637080,-542.92,0.00049315,120]
[331476805,1720437637172,-500.0,0.00049315,120]
[331476806,1720437637268,-500.0,0.00049315,120]
[331476807,1720437637363,-500.0,0.00049315,120]
[331476808,1720437637455,-500.0,0.00049315,120]
[331476809,1720437637548,-972.54,0.00049315,120]
[331476810,1720437637639,-269.35991078,0.00049315,120]
[331476811,1720437637733,-500.0,0.00049315,120]
[331476812,1720437637823,-276.7585192,0.00049315,120]
[331476813,1720437637914,-500.0,0.00049315,120]
[331476814,1720437638008,-633.31,0.00049315,120]
[331476815,1720437638101,-500.0,0.00049315,120]
[331476816,1720437638191,-514.0432376,0.00049315,120]
[331476817,1720437638283,-500.0,0.00049315,120]
[331476818,1720437638374,-500.0,0.00049315,120]
[331476819,1720437638468,-500.0,0.00049315,120]
[331476820,1720437638565,-701.47,0.00049315,120]
[331476821,1720437638663,-827.79,0.00049315,120]
[331476822,1720437638748,-1270.71,0.00049315,120]
[331476823,1720437638842,-500.0,0.00049315,120]
[331476824,1720437638938,-500.0,0.00049315,120]
[331476825,1720437639033,-500.0,0.00049315,120]
[331476826,1720437639132,-992.98,0.00049315,120]
[331476827,1720437639232,-500.0,0.00049315,120]
[331476828,1720437639333,-2024.69,0.00049315,120]
[331476829,1720437639433,-500.0,0.00049315,120]
[331476830,1720437639531,-500.0,0.00049315,120]
[331476831,1720437639631,-500.0,0.00049315,120]
[331476832,1720437639722,-165.79330834,0.00049315,30]
[331476833,1720437639815,-1741.22,0.00049315,120]
[331476834,1720437639911,-1766.13,0.00049315,120]
[331476835,1720437640009,-384.09532007,0.00049315,120]
[331476836,1720437640110,-500.0,0.00049315,120]
[331476837,1720437640201,-812.78,0.00049315,120]
[331476838,1720437640296,-503.85779342,0.00049315,120]
[331476839,1720437640390,-1241.64,0.00049315,120]
[331476840,1720437640474,-206.32218329,0.00049315,120]
[331476841,1720437641073,-501.20728901,0.00049315,120]
[331476842,1720437641229,-1317.09,0.00049315,120]
[331476843,1720437641311,-915.9,0.00049315,120]
[331476844,1720437641391,-1264.41,0.00049315,120]
[331476845,1720437641469,-500.0,0.00049315,120]
[331476846,1720437641555,-500.0,0.00049315,120]
[331476847,1720437641635,-500.0,0.00049315,120]
[331476848,1720437641712,-500.0,0.00049315,120]
[331476849,1720437641792,-500.0,0.00049315,120]
[331476850,1720437641870,-500.0,0.00049315,120]
[331476851,1720437641953,-597.99,0.00049315,120]
[331476852,1720437642042,-500.0,0.00049315,120]
[331476853,1720437642121,-500.0,0.00049315,120]
[331476854,1720437642200,-155.6660619,0.00049315,120]
[331476855,1720437642277,-548.85,0.00049315,120]
[331476856,1720437642357,-500.0,0.00049315,120]
[331476857,1720437642441,-500.0,0.00049315,120]
[331476858,1720437642525,-500.0,0.00049315,120]
[331476859,1720437642611,-500.0,0.00049315,120]
[331476860,1720437642698,-500.0,0.00049315,120]
[331476861,1720437642781,-592.5,0.00049315,120]
[331476862,1720437642864,-500.0,0.00049315,120]
[331476863,1720437642947,-500.0,0.00049315,120]
[331476864,1720437643030,-500.0,0.00049315,120]
[331476865,1720437643111,-500.0,0.00049315,120]
[331476866,1720437643198,-355.17450875,0.00049315,120]
[331476867,1720437643284,-500.0,0.00049315,120]
[331476868,1720437643380,-285.64117747,0.00049315,120]
[331476869,1720437643463,-919.43,0.00049315,120]
[331476870,1720437643543,-500.0,0.00049315,120]
[331476871,1720437643622,-1634.54,0.00049315,120]
[331476872,1720437643698,-500.0,0.00049315,120]
[331476873,1720437643778,-1087.49,0.00049315,120]
[331476874,1720437643863,-500.0,0.00049315,120]
[331476875,1720437643954,-3540.48,0.00049315,120]
[331476876,1720437644043,-500.0,0.00049315,120]
[331476877,1720437644134,-602.54,0.00049315,120]
[331476878,1720437644223,-500.0,0.00049315,120]
[331476879,1720437644311,-558.45,0.00049315,120]
[331476880,1720437644400,-921.41,0.00049315,120]
[331476881,1720437644489,-978.12,0.00049315,120]
[331476882,1720437644579,-500.0,0.00049315,120]
[331476883,1720437644665,-1694.76,0.00049315,120]
[331476884,1720437644753,-187.56875696,0.00049315,120]
[331476885,1720437644842,-500.0,0.00049315,120]
[331476886,1720437644929,-500.0,0.00049315,120]
[331476887,1720437645012,-500.0,0.00049315,120]
[331476888,1720437645104,-500.0,0.00049315,120]
[331476889,1720437645193,-500.0,0.00049315,120]
[331476890,1720437645277,-500.0,0.00049315,120]
[331476891,1720437645362,-500.0,0.00049315,120]
[331476892,1720437645443,-500.0,0.00049315,120]
[331476893,1720437645528,-1886.47,0.00049315,120]
[331476894,1720437645615,-1514.14,0.00049315,120]
[331476895,1720437645692,-500.0,0.00049315,120]
[331476896,1720437645774,-500.0,0.00049315,120]
[331476897,1720437645847,-681.95,0.00049315,120]
[331476898,1720437645924,-521.67,0.00049315,120]
[331476899,1720437646002,-500.0,0.00049315,120]
[331476900,1720437646076,-500.0,0.00049315,120]
[331476901,1720437646154,-500.0,0.00049315,120]
[331476902,1720437646231,-500.0,0.00049315,120]
[331476903,1720437646308,-1119.43,0.00049315,120]
[331476904,1720437646388,-500.0,0.00049315,120]
[331476905,1720437646461,-500.0,0.00049315,120]
[331476906,1720437646540,-500.0,0.00049315,120]
[331476907,1720437646621,-500.0,0.00049315,120]
[331476908,1720437646698,-500.0,0.00049315,120]
[331476909,1720437646780,-500.0,0.00049315,120]
[331476910,1720437646854,-500.0,0.00049315,120]
[331476911,1720437646934,-500.0,0.00049315,120]
[331476912,1720437647012,-500.0,0.00049315,120]
[331476913,1720437647089,-500.0,0.00049315,120]
[331476914,1720437647173,-500.0,0.00049315,120]
[331476915,1720437647250,-500.0,0.00049315,120]
[331476916,1720437647327,-500.0,0.00049315,120]
[331476917,1720437647405,-500.0,0.00049315,120]
[331476918,1720437647481,-500.0,0.00049315,120]
[331476919,1720437647565,-612.16,0.00049315,120]
[331476920,1720437647652,-500.0,0.00049315,120]
[331476921,1720437647738,-503.00752001,0.00049315,120]
[331476922,1720437647818,-500.0,0.00049315,120]
[331476923,1720437647901,-500.0,0.00049315,120]
[331476924,1720437647977,-500.0,0.00049315,120]
[331476925,1720437648058,-500.0,0.00049315,120]
[331476926,1720437648137,-500.0,0.00049315,120]
[331476927,1720437648214,-500.0,0.00049315,120]
[331476928,1720437648294,-500.0,0.00049315,120]
[331476929,1720437648379,-500.0,0.00049315,120]
[331476930,1720437648467,-500.0,0.00049315,120]
[331476931,1720437648557,-377.10600358,0.00049315,120]
[331476932,1720437648642,-500.0,0.00049315,120]
[331476933,1720437648731,-1022.7,0.00049315,120]
[331476934,1720437648819,-500.0,0.00049315,120]
[331476935,1720437648909,-902.66,0.00049315,120]
[331476936,1720437649000,-500.0,0.00049315,120]
[331476937,1720437649086,-500.0,0.00049315,120]
[331476938,1720437649366,-500.0,0.00049315,120]
[331476939,1720437649473,-859.41,0.00049315,120]
[331476940,1720437649563,-500.0,0.00049315,120]
[331476941,1720437649649,-715.44,0.00049315,120]
[331476942,1720437649732,-500.0,0.00049315,120]
[331476943,1720437649819,-2590.86,0.00049315,120]
[331476944,1720437649906,-1650.74,0.00049315,120]
[331476945,1720437649999,-500.0,0.00049315,120]
[331476946,1720437650088,-500.0,0.00049315,120]
[331476947,1720437650181,-500.0,0.00049315,120]
[331476948,1720437650272,-500.0,0.00049315,120]
[331476949,1720437650357,-500.0,0.00049315,120]
[331476950,1720437650444,-809.57,0.00049315,120]
[331476951,1720437650530,-1041.8,0.00049315,120]
[331476952,1720437650610,-500.0,0.00049315,120]
[331476953,1720437650691,-934.27,0.00049315,120]
[331476954,1720437650773,-500.0,0.00049315,120]
[331476955,1720437650856,-168.02555281,0.00049315,120]
[331476956,1720437650938,-500.0,0.00049315,120]
[331476957,1720437651020,-500.0,0.00049315,120]
[331476958,1720437651104,-1826.92,0.00049315,120]
[331476959,1720437651188,-1534.87,0.00049315,120]
[331476960,1720437651270,-500.0,0.00049315,120]
[331476961,1720437651350,-949.65,0.00049315,120]
[331476962,1720437651434,-500.0,0.00049315,120]
[331476963,1720437651520,-5589.44,0.00049315,120]
[331476964,1720437651603,-500.0,0.00049315,120]
[331476965,1720437651687,-500.0,0.00049315,120]
[331476966,1720437651765,-924.87,0.00049315,120]
[331476967,1720437651852,-2632.81,0.00049315,120]
[331476968,1720437651934,-2163.26,0.00049315,120]
[331476969,1720437652017,-611.62,0.00049315,120]
[331476970,1720437652100,-500.0,0.00049315,120]
[331476971,1720437652190,-500.0,0.00049315,120]
[331476972,1720437652280,-500.0,0.00049315,120]
[331476973,1720437652366,-500.0,0.00049315,120]
[331476974,1720437652448,-500.0,0.00049315,120]
[331476975,1720437652534,-500.0,0.00049315,120]
[331476976,1720437652616,-5715.07,0.00049315,120]
[331476977,1720437652698,-234.31082108,0.00049315,120]
[331476978,1720437652784,-500.0,0.00049315,120]
[331476979,1720437652865,-500.0,0.00049315,120]
[331476980,1720437652953,-500.0,0.00049315,120]
[331476981,1720437653036,-2300.26,0.00049315,120]
[331476982,1720437653120,-2711.84,0.00049315,120]
[331476983,1720437653210,-205.63026981,0.00049315,120]
[331476984,1720437653299,-500.0,0.00049315,120]
[331476985,1720437653392,-1937.19,0.00049315,120]
[331476986,1720437653481,-500.0,0.00049315,120]
[331476987,1720437653566,-500.0,0.00049315,120]
[331476988,1720437653657,-500.0,0.00049315,120]
[331476989,1720437653752,-500.0,0.00049315,90]
[331476990,1720437653849,-932.59,0.00049315,120]
[331476991,1720437653947,-500.0,0.00049315,120]
[331476992,1720437654041,-500.0,0.00049315,120]
[331476993,1720437654136,-5413.85,0.00049315,120]
[331476994,1720437654229,-500.0,0.00049315,120]
[331476995,1720437654318,-2614.96,0.00049315,120]
[331476996,1720437654413,-500.0,0.00049315,120]
[331476997,1720437654501,-500.0,0.00049315,120]
[331476998,1720437654593,-500.0,0.00049315,120]
[331476999,1720437654683,-2148.51,0.00049315,120]
[331477000,1720437654784,-572.46543647,0.00049315,120]
[331477001,1720437654870,-500.0,0.00049315,120]
[331477002,1720437654964,-500.0,0.00049315,120]
[331477003,1720437655049,-500.0,0.00049315,120]
[331477004,1720437655135,-500.0,0.00049315,120]
[331477005,1720437655218,-633.82,0.00049315,120]
[331477006,1720437655298,-500.0,0.00049315,120]
[331477007,1720437655387,-500.0,0.00049315,120]
[331477008,1720437655471,-500.0,0.00049315,120]
[331477009,1720437655565,-1837.33,0.00049315,120]
[331477010,1720437655652,-500.0,0.00049315,120]
[331477011,1720437655740,-500.0,0.00049315,120]
[331477012,1720437655896,-5053.13,0.00049315,120]
[331477013,1720437655986,-500.0,0.00049315,120]
[331477014,1720437656066,-500.0,0.00049315,120]
[331477015,1720437656147,-500.0,0.00049315,120]
[331477016,1720437656233,-500.0,0.00049315,120]
[331477017,1720437656317,-500.0,0.00049315,120]
[331477018,1720437656401,-500.0,0.00049315,120]
[331477019,1720437656488,-1305.54,0.00049315,120]
[331477020,1720437656572,-500.0,0.00049315,120]
[331477021,1720437656656,-500.0,0.00049315,120]
[331477022,1720437656736,-501.36,0.00049315,120]
[331477023,1720437656818,-500.0,0.00049315,120]
[331477024,1720437656896,-500.0,0.00049315,120]
[331477025,1720437656980,-6452.68,0.00049315,120]
[331477026,1720437657057,-522.56,0.00049315,120]
[331477027,1720437657134,-500.0,0.00049315,120]
[331477028,1720437657213,-500.0,0.00049315,120]
[331477029,1720437657287,-2323.52,0.00049315,120]
[331477030,1720437657364,-500.0,0.00049315,120]
[331477031,1720437657443,-500.0,0.00049315,120]
[331477032,1720437657518,-1448.04,0.00049315,120]
[331477033,1720437657594,-2564.45,0.00049315,120]
[331477034,1720437657673,-852.59,0.00049315,120]
[331477035,1720437657746,-3026.79,0.00049315,120]
[331477036,1720437657827,-500.0,0.00049315,120]
[331477037,1720437657907,-500.0,0.00049315,120]
[331477038,1720437657993,-500.0,0.00049315,120]
[331477039,1720437658072,-2132.97,0.00049315,120]
[331477040,1720437658150,-500.0,0.00049315,120]
[331477041,1720437658228,-500.0,0.00049315,120]
[331477042,1720437658304,-461.16393082,0.00049315,120]
[331477043,1720437658388,-684.14,0.00049315,120]
[331477044,1720437658471,-500.0,0.00049315,120]
[331477045,1720437658552,-500.0,0.00049315,120]
[331477046,1720437658643,-500.0,0.00049315,120]
[331477047,1720437658733,-500.0,0.00049315,120]